[Event "12ème open de Salon"]
[Site "Salon de Provence, France"]
[Date "2022.07.11"]
[Round "4.4"]
[White "Tramarin, Matteo"]
[Black "Piquemal, Maxence"]
[Result "1/2-1/2"]
[TimeControl "1 h 30 min + 30 s"]
[WhiteElo "1501"]
[BlackElo "1668"]

1. c4 {[%clk 01:30:50]} {[%emt 00:00:08]} e6 {[%clk 01:30:47]} {[%emt
00:00:14]} 2. d4 {[%clk 01:30:42]} {[%emt 00:00:38]} d5 {[%clk 01:31:11]}
{[%emt 00:00:06]} 3. cxd5 {[%clk 01:28:44]} {[%emt 00:02:28]} exd5 {[%clk
01:31:37]} {[%emt 00:00:04]} 4. Bf4 {[%clk 01:29:03]} {[%emt 00:00:11]} Nf6
{[%clk 01:30:46]} {[%emt 00:01:21]} 5. h3 {[%clk 01:28:37]} {[%emt 00:00:56]}
c6 {[%clk 01:28:43]} {[%emt 00:02:33]} 6. e3 {[%clk 01:28:41]} {[%emt
00:00:27]} Bf5 {[%clk 01:26:52]} {[%emt 00:02:20]} 7. Bd3 {[%clk 01:28:45]}
{[%emt 00:00:26]} Bg6 {[%clk 01:26:00]} {[%emt 00:01:23]} 8. Ne2 {[%clk
01:27:34]} {[%emt 00:01:41]} Bd6 {[%clk 01:22:16]} {[%emt 00:04:14]} 9. Bxg6
{[%clk 01:26:50]} {[%emt 00:01:14]} hxg6 {[%clk 01:22:31]} {[%emt 00:00:15]} 10.
Nd2 {[%clk 01:26:45]} {[%emt 00:00:34]} Qc7 {[%clk 01:17:03]} {[%emt 00:05:58]}
11. Nf3 {[%clk 01:23:23]} {[%emt 00:03:53]} Ne4 {[%clk 01:08:59]} {[%emt
00:08:34]} 12. Ne5 {[%clk 01:11:16]} {[%emt 00:12:37]} Nd7 {[%clk 00:55:45]}
{[%emt 00:13:44]} 13. f3 {[%clk 01:04:16]} {[%emt 00:07:31]} Nef6 {[%clk
00:50:36]} {[%emt 00:05:39]} 14. Nd3 {[%clk 00:56:52]} {[%emt 00:07:53]} Nh5
{[%clk 00:39:07]} {[%emt 00:12:00]} 15. Bxd6 {[%clk 00:54:35]} {[%emt
00:02:47]} Qxd6 {[%clk 00:39:25]} {[%emt 00:00:11]} 16. Kf2 {[%clk 00:55:00]}
{[%emt 00:00:05]} O-O-O {[%clk 00:34:28]} {[%emt 00:05:27]} 17. b4 {[%clk
00:54:43]} {[%emt 00:00:47]} Rde8 {[%clk 00:30:36]} {[%emt 00:04:22]} 18. Rc1
{[%clk 00:48:40]} {[%emt 00:06:33]} Qe7 {[%clk 00:21:33]} {[%emt 00:09:34]} 19.
Qd2 {[%clk 00:48:42]} {[%emt 00:00:28]} Kb8 {[%clk 00:17:35]} {[%emt 00:04:27]}
20. Nc5 {[%clk 00:43:42]} {[%emt 00:05:31]} Nb6 {[%clk 00:13:03]} {[%emt
00:05:02]} 21. Rc3 {[%clk 00:37:57]} {[%emt 00:06:15]} Nc4 {[%clk 00:09:25]}
{[%emt 00:04:08]} 22. Qc1 {[%clk 00:36:52]} {[%emt 00:01:35]} f5 {[%clk
00:08:15]} {[%emt 00:01:41]} 23. a4 {[%clk 00:34:31]} {[%emt 00:02:50]} f4
{[%emt 00:01:25]} 24. e4 {[%clk 00:34:28]} {[%emt 00:00:31]} Qh4+ {[%clk
00:07:20]} {[%emt 00:00:32]} 25. Kg1 {[%clk 00:32:08]} {[%emt 00:02:50]} Ng3
{[%clk 00:04:45]} {[%emt 00:03:05]} 26. Nxg3 {[%clk 00:31:21]} {[%emt
00:01:17]} Qxg3 {[%clk 00:05:07]} {[%emt 00:00:08]} 27. e5 {[%clk 00:31:34]}
{[%emt 00:00:17]} Ne3 {[%clk 00:04:32]} {[%emt 00:01:05]} 28. Qd2 {[%clk
00:31:37]} {[%emt 00:00:27]} Rh5 {[%clk 00:04:26]} {[%emt 00:00:36]} 29. Nd3
{[%clk 00:31:50]} {[%emt 00:00:17]} Qg5 {[%clk 00:00:53]} {[%emt 00:04:03]} 30.
Qf2 {[%clk 00:29:42]} {[%emt 00:02:38]} Nd1 {[%clk 00:00:50]} {[%emt 00:00:33]}
31. Qd2 {[%clk 00:28:49]} {[%emt 00:01:22]} Nxc3 {[%clk 00:01:14]} {[%emt
00:00:07]} 32. Qxc3 {[%clk 00:29:15]} {[%emt 00:00:04]} Reh8 {[%clk 00:01:14]}
{[%emt 00:00:30]} 33. Kf1 {[%clk 00:29:38]} {[%emt 00:00:07]} Qf5 {[%clk
00:00:45]} {[%emt 00:00:59]} 34. e6 {[%clk 00:27:16]} {[%emt 00:02:51]} Re8
{[%clk 00:00:42]} {[%emt 00:00:32]} 35. Qd2 {[%clk 00:26:38]} {[%emt 00:01:09]}
g5 {[%clk 00:00:46]} {[%emt 00:00:27]} 36. Kf2 {[%clk 00:24:39]} {[%emt
00:02:28]} Qxe6 {[%clk 00:00:45]} {[%emt 00:00:30]} 37. Ne5 {[%clk 00:25:04]}
{[%emt 00:00:06]} Rh6 {[%clk 00:00:38]} {[%emt 00:00:35]} 38. Rc1 {[%clk
00:24:55]} {[%emt 00:00:41]} Rc8 {[%clk 00:00:39]} {[%emt 00:00:29]} 39. Qe2
{[%clk 00:25:01]} {[%emt 00:00:24]} Rf6 {[%clk 00:00:36]} {[%emt 00:00:34]} 40.
a5 {[%clk 00:25:02]} {[%emt 00:00:28]} a6 {[%clk 00:00:47]} {[%emt 00:00:19]}
41. Qc2 {[%clk 00:24:43]} {[%emt 00:00:49]} Qd6 {[%clk 00:01:14]} {[%emt
00:00:04]} 42. Rb1 {[%clk 00:24:17]} {[%emt 00:00:55]} Re8 {[%clk 00:01:21]}
{[%emt 00:00:23]} 43. Qc3 {[%clk 00:24:18]} {[%emt 00:00:29]} Rfe6 {[%clk
00:01:12]} {[%emt 00:00:39]} 44. Re1 {[%clk 00:24:11]} {[%emt 00:00:36]} R8e7
{[%clk 00:01:07]} {[%emt 00:00:35]} 45. Re2 {[%clk 00:24:20]} {[%emt 00:00:21]}
g6 {[%clk 00:01:12]} {[%emt 00:00:26]} 46. Re1 {[%clk 00:23:22]} {[%emt
00:01:28]} Re8 {[%clk 00:01:04]} {[%emt 00:00:38]} 47. Re2 {[%clk 00:23:11]}
{[%emt 00:00:40]} R8e7 {[%clk 00:00:52]} {[%emt 00:00:43]} 48. Re1 {[%clk
00:23:31]} {[%emt 00:00:10]} Re8 {[%emt 00:00:30]} 49. Ke3 {[%emt 00:00:13]}
1/2-1/2

[Event "12ème open de Salon"]
[Site "Salon de Provence, France"]
[Date "2022.07.11"]
[Round "4.5"]
[White "Jullien, Patrick"]
[Black "Schiano-Lomoriello, Didier"]
[Result "1-0"]
[TimeControl "1 h 30 min + 30 s"]
[WhiteElo "1548"]
[BlackElo "1570"]

1. e4 {[%clk 01:30:51]} {[%emt 00:00:07]} c5 {[%clk 01:30:55]} {[%emt
00:00:05]} 2. Nc3 {[%clk 01:31:09]} {[%emt 00:00:12]} Nc6 {[%clk 01:31:13]}
{[%emt 00:00:12]} 3. Nge2 {[%clk 01:31:07]} {[%emt 00:00:32]} g6 {[%clk
01:27:39]} {[%emt 00:04:04]} 4. g3 {[%clk 01:30:19]} {[%emt 00:01:17]} Bg7
{[%clk 01:28:01]} {[%emt 00:00:08]} 5. Bg2 {[%clk 01:30:31]} {[%emt 00:00:18]}
d6 {[%clk 01:26:46]} {[%emt 00:01:46]} 6. d3 {[%clk 01:30:18]} {[%emt
00:00:43]} Nf6 {[%clk 01:26:57]} {[%emt 00:00:19]} 7. O-O {[%clk 01:29:30]}
{[%emt 00:01:18]} O-O {[%clk 01:27:20]} {[%emt 00:00:07]} 8. h3 {[%clk
01:25:32]} {[%emt 00:04:28]} Rb8 {[%clk 01:27:20]} {[%emt 00:00:29]} 9. Be3
{[%clk 01:24:22]} {[%emt 00:01:40]} b5 {[%clk 01:24:12]} {[%emt 00:03:39]} 10.
d4 {[%clk 01:19:25]} {[%emt 00:05:26]} b4 {[%clk 01:18:46]} {[%emt 00:05:57]}
11. Nd5 {[%clk 01:14:49]} {[%emt 00:05:05]} Nxd5 {[%clk 01:01:02]} {[%emt
00:18:14]} 12. exd5 {[%clk 01:14:56]} {[%emt 00:00:23]} Nxd4 {[%clk 01:00:26]}
{[%emt 00:01:07]} 13. Nxd4 {[%clk 01:13:36]} {[%emt 00:01:50]} cxd4 {[%clk
01:00:38]} {[%emt 00:00:18]} 14. Bxd4 {[%clk 01:13:51]} {[%emt 00:00:14]} Bxd4
{[%clk 00:59:36]} {[%emt 00:01:33]} 15. Qxd4 {[%clk 01:13:52]} {[%emt
00:00:29]} Qc7 {[%clk 00:37:57]} {[%emt 00:22:08]} 16. c3 {[%clk 00:54:17]}
{[%emt 00:20:06]} bxc3 {[%clk 00:37:11]} {[%emt 00:01:16]} 17. bxc3 {[%clk
00:53:20]} {[%emt 00:01:26]} Ba6 {[%clk 00:34:48]} {[%emt 00:02:54]} 18. Rfb1
{[%clk 00:48:26]} {[%emt 00:03:59]} Rfc8 {[%emt 00:18:19]} 19. Rb3 {[%clk
00:41:05]} Bc4 {[%clk 00:24:17]} {[%emt 00:02:29]} 20. Ra3 {[%clk 00:35:36]}
{[%emt 00:05:59]} Rb7 {[%clk 00:19:31]} {[%emt 00:05:16]} 21. Bf1 {[%clk
00:35:18]} {[%emt 00:00:48]} Bxf1 {[%clk 00:18:58]} {[%emt 00:01:03]} 22. Rxf1
{[%clk 00:29:46]} {[%emt 00:06:02]} Qc5 {[%clk 00:18:58]} {[%emt 00:00:30]} 23.
Qxc5 {[%clk 00:17:36]} {[%emt 00:12:40]} Rxc5 {[%clk 00:19:18]} {[%emt
00:00:10]} 24. Rd1 {[%clk 00:16:59]} {[%emt 00:01:07]} a5 {[%clk 00:17:23]}
{[%emt 00:02:25]} 25. Rd4 {[%clk 00:15:55]} {[%emt 00:01:34]} Rbb5 {[%clk
00:16:50]} {[%emt 00:01:03]} 26. c4 {[%clk 00:14:48]} {[%emt 00:01:37]} Rb4
{[%clk 00:15:23]} {[%emt 00:01:56]} 27. Rc3 {[%clk 00:13:23]} {[%emt 00:01:14]}
a4 {[%clk 00:12:45]} {[%emt 00:03:49]} 28. Re4 {[%clk 00:10:23]} {[%emt
00:03:30]} Kf8 {[%clk 00:12:21]} {[%emt 00:00:55]} 29. Kf1 {[%clk 00:08:08]}
{[%emt 00:02:45]} Rc7 {[%clk 00:06:32]} {[%emt 00:06:19]} 30. Ke1 {[%clk
00:06:44]} {[%emt 00:01:54]} Rb1+ {[%clk 00:06:12]} {[%emt 00:00:50]} 31. Kd2
{[%clk 00:06:29]} {[%emt 00:00:44]} Rcb7 {[%clk 00:03:18]} {[%emt 00:03:25]} 32.
c5 {[%clk 00:02:44]} {[%emt 00:04:15]} R7b2+ {[%clk 00:03:08]} {[%emt
00:00:40]} 33. Rc2 {[%clk 00:02:48]} {[%emt 00:00:26]} dxc5 34. Rxa4 Rb4 {[%clk
00:01:07]} {[%emt 00:00:27]} 35. Ra8+ {[%clk 00:02:22]} {[%emt 00:01:09]} Kg7
{[%clk 00:00:34]} {[%emt 00:01:04]} 36. Rxc5 {[%clk 00:02:39]} {[%emt
00:00:13]} R1b2+ {[%clk 00:00:35]} {[%emt 00:00:29]} 37. Ke3 {[%clk 00:02:20]}
{[%emt 00:00:48]} Rb6 {[%clk 00:00:00]} {[%emt 00:00:35]} 1-0

[Event "12ème open de Salon"]
[Site "Salon de Provence, France"]
[Date "2022.07.11"]
[Round "4.6"]
[White "Bonchristiani, Pierre"]
[Black "Lauret, Patrick"]
[Result "0-1"]
[TimeControl "1 h 30 min + 30 s"]
[WhiteElo "1382"]
[BlackElo "1670"]

1. e4 {[%clk 01:30:57]} {[%emt 00:00:02]} e6 {[%clk 01:30:59]} {[%emt
00:00:02]} 2. d4 {[%clk 01:31:09]} {[%emt 00:00:17]} d5 {[%clk 01:31:27]}
{[%emt 00:00:02]} 3. Nd2 {[%clk 01:31:30]} {[%emt 00:00:09]} c5 {[%clk
01:31:46]} {[%emt 00:00:11]} 4. c3 {[%clk 01:31:11]} {[%emt 00:00:49]} cxd4
{[%clk 01:32:01]} {[%emt 00:00:16]} 5. cxd4 {[%clk 01:31:07]} {[%emt 00:00:34]}
dxe4 {[%clk 01:32:23]} {[%emt 00:00:08]} 6. Nxe4 {[%clk 01:31:11]} {[%emt
00:00:25]} Nf6 {[%clk 01:32:35]} {[%emt 00:00:18]} 7. Bd3 {[%clk 01:28:45]}
{[%emt 00:02:56]} Nc6 {[%clk 01:32:22]} {[%emt 00:00:42]} 8. Ne2 {[%clk
01:27:55]} {[%emt 00:01:20]} Bb4+ {[%clk 01:31:07]} {[%emt 00:01:45]} 9. N4c3
{[%clk 01:27:51]} {[%emt 00:00:34]} h6 {[%clk 01:30:27]} {[%emt 00:01:12]} 10.
h3 {[%clk 01:21:28]} {[%emt 00:06:53]} Bd7 {[%clk 01:30:45]} {[%emt 00:00:11]}
11. O-O {[%clk 01:20:56]} {[%emt 00:01:02]} O-O {[%clk 01:31:08]} {[%emt
00:00:07]} 12. Be3 {[%clk 01:16:38]} {[%emt 00:04:49]} a6 {[%clk 01:31:08]}
{[%emt 00:00:30]} 13. Rc1 {[%clk 01:13:00]} {[%emt 00:04:07]} Rc8 {[%clk
01:31:03]} {[%emt 00:00:35]} 14. Bb1 {[%clk 01:08:57]} {[%emt 00:04:33]} Ne7
{[%clk 01:29:31]} {[%emt 00:02:03]} 15. Qd3 {[%clk 01:01:31]} {[%emt 00:07:55]}
Bxc3 {[%clk 01:28:44]} {[%emt 00:01:17]} 16. Nxc3 {[%clk 01:01:13]} {[%emt
00:00:48]} b5 {[%clk 01:23:56]} {[%emt 00:05:19]} 17. g4 {[%clk 00:57:21]}
{[%emt 00:04:22]} Bc6 {[%clk 01:20:48]} {[%emt 00:03:38]} 18. g5 {[%clk
00:53:23]} {[%emt 00:04:29]} hxg5 {[%clk 01:18:45]} {[%emt 00:02:32]} 19. Bxg5
{[%clk 00:52:44]} {[%emt 00:01:09]} Ned5 {[%clk 01:18:30]} {[%emt 00:00:45]} 20.
Nxd5 {[%clk 00:46:59]} {[%emt 00:06:15]} Qxd5 {[%clk 01:18:14]} {[%emt
00:00:46]} 21. Rxc6 {[%clk 00:46:59]} {[%emt 00:00:30]} Qxg5+ {[%clk 01:18:35]}
{[%emt 00:00:09]} 22. Kh1 {[%clk 00:43:57]} {[%emt 00:03:32]} Rxc6 {[%clk
01:18:40]} {[%emt 00:00:25]} 23. f4 {[%clk 00:41:01]} {[%emt 00:03:27]} Qd5+
{[%clk 01:17:27]} {[%emt 00:01:42]} 24. Kh2 {[%clk 00:39:11]} {[%emt 00:02:20]}
Rc4 {[%clk 01:14:59]} {[%emt 00:02:58]} 25. Rg1 {[%clk 00:37:11]} {[%emt
00:02:31]} Rxd4 {[%clk 01:12:29]} {[%emt 00:03:00]} 26. Rxg7+ {[%clk 00:31:02]}
{[%emt 00:06:38]} Kxg7 {[%clk 01:12:56]} {[%emt 00:00:02]} 27. Qg3+ {[%clk
00:31:16]} {[%emt 00:00:17]} Kh6 {[%clk 01:12:54]} {[%emt 00:00:32]} 28. Qh4+
{[%clk 00:31:34]} {[%emt 00:00:13]} Nh5 {[%emt 00:01:41]} 29. Kh1 0-1

[Event "12ème open de Salon"]
[Site "Salon de Provence, France"]
[Date "2022.07.11"]
[Round "4.7"]
[White "Schmitz, Yves"]
[Black "Frailinu, Jean-Bernard"]
[Result "0-1"]
[TimeControl "1 h 30 min + 30 s"]
[WhiteElo "1463"]
[BlackElo "1349"]

1. e4 {[%clk 01:30:57]} {[%emt 00:00:02]} e6 {[%clk 01:30:50]} {[%emt
00:00:10]} 2. d4 {[%clk 01:30:57]} {[%emt 00:00:30]} d5 {[%clk 01:31:09]}
{[%emt 00:00:11]} 3. Nc3 {[%clk 01:29:50]} {[%emt 00:01:37]} Nf6 {[%clk
01:31:25]} {[%emt 00:00:14]} 4. e5 {[%clk 01:28:40]} {[%emt 00:01:41]} Nfd7
{[%clk 01:31:34]} {[%emt 00:00:20]} 5. f4 {[%clk 01:25:25]} {[%emt 00:03:46]}
c5 {[%clk 01:31:39]} {[%emt 00:00:24]} 6. Nf3 {[%clk 01:23:20]} {[%emt
00:02:37]} a6 {[%clk 01:31:21]} {[%emt 00:00:47]} 7. Be3 {[%clk 01:18:30]}
{[%emt 00:05:20]} Nc6 {[%clk 01:30:26]} {[%emt 00:01:25]} 8. Ne2 {[%clk
01:14:01]} {[%emt 00:05:00]} Be7 {[%clk 01:27:38]} {[%emt 00:03:17]} 9. c3
{[%clk 01:12:27]} {[%emt 00:02:04]} b5 {[%clk 01:20:53]} {[%emt 00:07:15]} 10.
dxc5 {[%clk 01:02:45]} {[%emt 00:10:13]} Nxc5 {[%clk 01:20:44]} {[%emt
00:00:39]} 11. Ned4 {[%clk 01:00:20]} {[%emt 00:02:55]} Qc7 {[%clk 01:19:25]}
{[%emt 00:01:47]} 12. g3 {[%clk 00:58:23]} {[%emt 00:02:29]} Nd7 {[%clk
01:15:01]} {[%emt 00:04:53]} 13. Nxc6 {[%clk 00:56:30]} {[%emt 00:02:23]} Qxc6
{[%clk 01:14:56]} {[%emt 00:00:35]} 14. Nd4 {[%clk 00:56:14]} {[%emt 00:00:46]}
Qc7 {[%clk 01:14:38]} {[%emt 00:00:46]} 15. Bg2 {[%clk 00:54:43]} {[%emt
00:02:03]} Rb8 {[%clk 01:12:37]} {[%emt 00:02:31]} 16. Qg4 {[%clk 00:54:08]}
{[%emt 00:01:05]} g6 {[%clk 01:11:43]} {[%emt 00:01:24]} 17. Qd1 {[%clk
00:52:30]} {[%emt 00:02:08]} Nb6 {[%clk 01:11:10]} {[%emt 00:01:02]} 18. Bf2
{[%clk 00:49:03]} {[%emt 00:03:58]} Bb7 {[%clk 01:04:47]} {[%emt 00:06:51]} 19.
Qd3 {[%clk 00:47:56]} {[%emt 00:01:38]} Na4 {[%clk 01:04:02]} {[%emt 00:01:13]}
20. Qc2 {[%clk 00:43:56]} {[%emt 00:04:31]} Rc8 {[%clk 01:02:58]} {[%emt
00:01:35]} 21. Rc1 {[%clk 00:40:29]} {[%emt 00:03:57]} O-O {[%clk 01:00:22]}
{[%emt 00:03:06]} 22. O-O {[%clk 00:38:56]} {[%emt 00:02:03]} Qa5 {[%clk
00:58:51]} {[%emt 00:02:00]} 23. Nb3 {[%clk 00:36:16]} {[%emt 00:03:11]} Qc7
{[%clk 00:57:58]} {[%emt 00:01:22]} 24. Rfd1 {[%clk 00:34:17]} {[%emt
00:02:30]} b4 {[%clk 00:55:14]} {[%emt 00:03:14]} 25. Bd4 {[%clk 00:27:58]}
{[%emt 00:06:50]} bxc3 {[%clk 00:43:57]} {[%emt 00:11:46]} 26. bxc3 {[%clk
00:27:28]} {[%emt 00:01:01]} Ba3 {[%clk 00:41:23]} {[%emt 00:03:04]} 27. Nd2
{[%clk 00:16:17]} {[%emt 00:11:42]} Bxc1 {[%clk 00:40:03]} {[%emt 00:01:50]} 28.
Qxa4 {[%clk 00:16:08]} {[%emt 00:00:39]} Bxd2 {[%clk 00:39:57]} {[%emt
00:00:37]} 29. Rxd2 {[%clk 00:16:25]} {[%emt 00:00:13]} Qc4 {[%clk 00:38:34]}
{[%emt 00:01:52]} 30. Qc2 {[%clk 00:15:51]} {[%emt 00:01:04]} Ra8 {[%clk
00:35:14]} {[%emt 00:03:49]} 31. Bf1 {[%clk 00:16:05]} {[%emt 00:00:18]} Qc6
{[%clk 00:34:59]} {[%emt 00:00:44]} 32. Rd1 {[%clk 00:15:47]} {[%emt 00:00:49]}
Rfb8 {[%clk 00:33:57]} {[%emt 00:01:31]} 33. Rb1 {[%clk 00:14:54]} {[%emt
00:01:24]} Bc8 {[%clk 00:34:10]} {[%emt 00:00:16]} 34. Rxb8 {[%clk 00:14:34]}
{[%emt 00:00:51]} Rxb8 {[%clk 00:34:30]} {[%emt 00:00:10]} 35. a3 {[%clk
00:14:25]} {[%emt 00:00:39]} Qb7 {[%clk 00:34:35]} {[%emt 00:00:24]} 36. Bc5
{[%clk 00:14:16]} {[%emt 00:00:40]} Qb3 {[%clk 00:33:44]} {[%emt 00:01:21]} 37.
Qxb3 {[%clk 00:14:33]} {[%emt 00:00:14]} Rxb3 {[%clk 00:34:02]} {[%emt
00:00:12]} 38. Bb4 {[%clk 00:15:02]} {[%emt 00:00:02]} a5 {[%clk 00:33:43]}
{[%emt 00:00:48]} 39. Bxa5 {[%clk 00:15:29]} {[%emt 00:00:03]} Rxa3 {[%clk
00:33:57]} {[%emt 00:00:15]} 40. Bb4 {[%clk 00:15:52]} {[%emt 00:00:07]} Ra1
{[%clk 00:34:02]} {[%emt 00:00:26]} 41. Kg2 {[%clk 00:15:12]} {[%emt 00:01:11]}
Kg7 {[%clk 00:33:53]} {[%emt 00:00:38]} 42. h3 {[%clk 00:15:14]} {[%emt
00:00:28]} h6 {[%clk 00:33:03]} {[%emt 00:01:20]} 43. Kf2 {[%clk 00:15:19]}
{[%emt 00:00:23]} Ba6 {[%clk 00:32:35]} {[%emt 00:00:58]} 44. Bxa6 {[%clk
00:15:35]} {[%emt 00:00:14]} Rxa6 {[%clk 00:32:54]} {[%emt 00:00:11]} 45. g4
{[%clk 00:15:38]} {[%emt 00:00:28]} Ra2+ {[%clk 00:32:34]} {[%emt 00:00:48]} 46.
Kf3 {[%clk 00:15:49]} {[%emt 00:00:19]} f6 {[%clk 00:31:50]} {[%emt 00:01:15]}
47. Bc5 {[%clk 00:15:58]} {[%emt 00:00:22]} Ra4 {[%clk 00:31:20]} {[%emt
00:00:58]} 48. Bd4 {[%clk 00:15:28]} {[%emt 00:01:02]} f5 {[%clk 00:31:23]}
{[%emt 00:00:26]} 49. gxf5 {[%clk 00:15:22]} {[%emt 00:00:36]} gxf5 {[%clk
00:31:42]} {[%emt 00:00:11]} 50. Kg3 {[%clk 00:15:08]} {[%emt 00:00:44]} Kg6
{[%clk 00:31:51]} {[%emt 00:00:20]} 51. Kh4 {[%clk 00:14:36]} {[%emt 00:01:02]}
Ra2 {[%clk 00:31:41]} {[%emt 00:00:39]} 52. Kg3 {[%clk 00:14:22]} {[%emt
00:00:44]} Rd2 {[%clk 00:31:45]} {[%emt 00:00:25]} 53. Kh4 {[%clk 00:14:12]}
{[%emt 00:00:42]} Rd3 {[%clk 00:31:47]} {[%emt 00:00:26]} 0-1

[Event "12ème open de Salon"]
[Site "Salon de Provence, France"]
[Date "2022.07.12"]
[Round "5.3"]
[White "Busson, Benoit"]
[Black "Charvein, Gabriel"]
[Result "0-1"]
[TimeControl "1 h 30 min + 30 s"]
[WhiteElo "1871"]
[BlackElo "2078"]

1. e4 {[%clk 01:30:49]} {[%emt 00:00:11]} e6 {[%clk 01:30:50]} {[%emt
00:00:10]} 2. d4 {[%clk 01:30:55]} {[%emt 00:00:24]} d5 {[%clk 01:31:14]}
{[%emt 00:00:06]} 3. e5 {[%clk 01:30:24]} {[%emt 00:01:02]} c5 {[%clk
01:31:39]} {[%emt 00:00:05]} 4. c3 {[%clk 01:30:06]} {[%emt 00:00:47]} Nc6
{[%clk 01:31:45]} {[%emt 00:00:24]} 5. Nf3 {[%clk 01:26:49]} {[%emt 00:03:47]}
Bd7 {[%clk 01:32:10]} {[%emt 00:00:06]} 6. Bd3 {[%clk 01:26:34]} {[%emt
00:00:45]} Rc8 {[%clk 01:32:33]} {[%emt 00:00:07]} 7. O-O {[%clk 01:24:51]}
{[%emt 00:02:12]} cxd4 {[%clk 01:32:58]} {[%emt 00:00:05]} 8. Re1 {[%clk
01:23:26]} {[%emt 00:01:55]} Nge7 {[%clk 01:33:14]} {[%emt 00:00:14]} 9. h4
{[%clk 01:22:27]} {[%emt 00:01:29]} h6 {[%clk 01:33:23]} {[%emt 00:00:21]} 10.
a3 {[%clk 01:15:17]} {[%emt 00:07:40]} Nf5 {[%clk 01:28:57]} {[%emt 00:04:56]}
11. Bxf5 {[%clk 01:02:14]} {[%emt 00:13:33]} exf5 {[%clk 01:28:51]} {[%emt
00:00:36]} 12. cxd4 {[%clk 01:02:00]} {[%emt 00:00:43]} Be7 {[%clk 01:29:00]}
{[%emt 00:00:21]} 13. h5 {[%clk 00:58:31]} {[%emt 00:04:00]} Be6 {[%clk
01:25:58]} {[%emt 00:03:32]} 14. Nc3 {[%clk 00:58:09]} {[%emt 00:00:51]} a6
{[%clk 01:23:55]} {[%emt 00:02:33]} 15. Ne2 {[%clk 00:53:12]} {[%emt 00:05:28]}
Bg5 {[%clk 01:06:13]} {[%emt 00:18:12]} 16. Bd2 {[%clk 00:45:56]} {[%emt
00:07:45]} O-O {[%clk 00:56:20]} {[%emt 00:10:24]} 17. b4 {[%clk 00:34:35]}
{[%emt 00:11:50]} Na7 {[%clk 00:50:40]} {[%emt 00:06:10]} 18. Rc1 {[%clk
00:30:21]} {[%emt 00:04:43]} Qe7 {[%clk 00:50:02]} {[%emt 00:01:09]} 19. Qb3
{[%clk 00:25:43]} {[%emt 00:05:08]} Bxd2 {[%clk 00:45:22]} {[%emt 00:05:10]} 20.
Nxd2 {[%clk 00:25:48]} {[%emt 00:00:24]} Qg5 {[%clk 00:45:31]} {[%emt
00:00:22]} 21. Nf3 {[%clk 00:21:32]} {[%emt 00:04:47]} Qxh5 {[%clk 00:45:31]}
{[%emt 00:00:30]} 22. Rc5 {[%clk 00:11:39]} {[%emt 00:10:22]} Qg4 {[%clk
00:42:09]} {[%emt 00:03:53]} 23. Rec1 {[%clk 00:09:53]} {[%emt 00:02:16]} f6
{[%clk 00:27:40]} {[%emt 00:14:59]} 24. exf6 {[%clk 00:06:26]} {[%emt
00:03:57]} Rxf6 {[%clk 00:25:40]} {[%emt 00:02:29]} 25. Rxc8+ {[%clk 00:06:15]}
{[%emt 00:00:41]} Nxc8 {[%clk 00:26:05]} {[%emt 00:00:06]} 26. Qe3 {[%clk
00:04:55]} {[%emt 00:01:49]} Qe4 {[%clk 00:24:39]} {[%emt 00:01:57]} 27. Nf4
{[%clk 00:03:02]} {[%emt 00:02:23]} Nd6 {[%clk 00:19:57]} {[%emt 00:05:13]} 28.
Ne5 {[%clk 00:03:10]} {[%emt 00:00:22]} Nb5 {[%clk 00:16:12]} {[%emt 00:04:14]}
29. Nh5 {[%clk 00:00:39]} {[%emt 00:03:01]} Rf8 {[%clk 00:14:49]} {[%emt
00:01:53]} 30. a4 {[%clk 00:00:53]} {[%emt 00:00:15]} Qxe3 {[%clk 00:07:11]}
{[%emt 00:08:08]} 31. fxe3 {[%clk 00:01:18]} {[%emt 00:00:05]} Nd6 {[%clk
00:07:28]} {[%emt 00:00:14]} 32. Rc7 {[%clk 00:01:32]} {[%emt 00:00:17]} Bf7
{[%clk 00:07:49]} {[%emt 00:00:09]} 33. Nf4 {[%clk 00:01:04]} {[%emt 00:00:58]}
g5 {[%clk 00:08:18]} {[%emt 00:00:01]} 34. Nxf7 {[%clk 00:00:53]} {[%emt
00:00:41]} Rxf7 {[%clk 00:08:47]} 35. Rxf7 {[%clk 00:01:12]} {[%emt 00:00:11]}
Kxf7 {[%clk 00:09:15]} {[%emt 00:00:01]} 36. Nxd5 {[%clk 00:01:29]} {[%emt
00:00:13]} Ne4 {[%clk 00:08:52]} {[%emt 00:00:54]} 37. Kf1 {[%clk 00:00:46]}
{[%emt 00:01:13]} h5 {[%clk 00:09:17]} {[%emt 00:00:05]} 38. Nb6 {[%clk
00:01:01]} {[%emt 00:00:14]} Ke6 {[%clk 00:09:17]} {[%emt 00:00:30]} 39. Ke2
{[%clk 00:01:19]} {[%emt 00:00:11]} h4 {[%clk 00:09:03]} {[%emt 00:00:44]} 40.
Kf3 {[%clk 00:00:56]} {[%emt 00:00:53]} Nf6 {[%clk 00:08:20]} {[%emt 00:01:14]}
41. b5 {[%clk 00:01:03]} {[%emt 00:00:23]} g4+ {[%clk 00:07:51]} {[%emt
00:00:59]} 42. Kf2 {[%clk 00:00:59]} {[%emt 00:00:34]} Ne4+ {[%clk 00:08:10]}
{[%emt 00:00:11]} 43. Ke2 {[%clk 00:01:16]} {[%emt 00:00:13]} axb5 {[%clk
00:08:28]} {[%emt 00:00:12]} 44. axb5 {[%clk 00:01:24]} {[%emt 00:00:22]} Nc3+
{[%clk 00:08:51]} {[%emt 00:00:07]} 45. Kd3 {[%clk 00:01:34]} {[%emt 00:00:20]}
h3 {[%clk 00:08:52]} {[%emt 00:00:29]} 46. gxh3 {[%clk 00:00:39]} {[%emt
00:01:25]} gxh3 {[%clk 00:09:05]} {[%emt 00:00:16]} 0-1